bitfinex-derivatives/quotes_BTCF0:USTF0_20250921
["timestamp","ask_amount","ask_price","bid_price","bid_amount"]
[1758416071003,0.0883798,115720.0,115710.0,2.11955663]
[1758416071494,0.0883798,115720.0,115710.0,1.9174133]
[1758416072196,0.0883798,115720.0,115710.0,1.80862572]
[1758416072797,0.0883798,115720.0,115710.0,1.9174133]
[1758416072996,0.002,115720.0,115710.0,2.54431726]
[1758416073200,0.08836,115720.0,115710.0,2.54431726]
[1758416073399,0.08836,115720.0,115710.0,2.16941962]
[1758416078408,0.07153,115720.0,115710.0,2.16941962]
[1758416082305,0.07153,115720.0,115710.0,2.32483045]
[1758416084202,0.07153,115720.0,115710.0,2.32443045]
[1758416084401,0.07153,115720.0,115710.0,2.59054051]
[1758416087210,0.07153,115720.0,115710.0,2.43512968]
[1758416087909,0.0863931,115730.0,115720.0,0.01288]
[1758416088211,0.0863931,115730.0,115720.0,1.19493018]
[1758416088410,0.0863931,115730.0,115720.0,1.56994351]
[1758416089305,0.0873931,115730.0,115720.0,1.57594351]
[1758416091813,0.0873931,115730.0,115720.0,1.30983345]
[1758416092314,0.0873931,115730.0,115720.0,1.88829012]
[1758416094812,0.0873931,115730.0,115720.0,2.15440018]
[1758416095025,0.0873931,115730.0,115720.0,2.16322917]
[1758416095424,0.0873931,115730.0,115720.0,2.15440018]
[1758416095915,0.0873931,115730.0,115720.0,2.09043345]
[1758416096118,0.0873931,115730.0,115720.0,2.09916203]
[1758416099316,0.0873931,115730.0,115720.0,1.30983345]
[1758416099525,0.0873931,115730.0,115720.0,2.09039345]
[1758416104724,0.0873931,115730.0,115720.0,2.35650351]
[1758416105618,0.0873931,115730.0,115720.0,2.15436018]
[1758416106022,0.0873931,115730.0,115720.0,2.24072118]
[1758416106422,0.0873931,115730.0,115720.0,1.442391]
[1758416106619,0.0873931,115730.0,115720.0,2.24072118]
[1758416106925,0.0873931,115730.0,115720.0,2.17675445]
[1758416107728,0.0873931,115730.0,115720.0,2.44286451]
[1758416108726,0.0873931,115730.0,115720.0,1.30983345]
[1758416108920,0.0873931,115730.0,115720.0,2.09035345]
[1758416111431,0.0873931,115730.0,115720.0,1.52741012]
[1758416111631,0.0873931,115730.0,115720.0,1.88821012]
[1758416112735,0.0873931,115730.0,115720.0,2.09035345]
[1758416112927,0.0873931,115730.0,115720.0,1.72955345]
[1758416113127,0.0873931,115730.0,115720.0,2.09035345]
[1758416113834,0.0873931,115730.0,115720.0,1.8242011]
[1758416116039,0.0873931,115730.0,115720.0,1.9105623]
[1758416117136,0.0873931,115730.0,115720.0,1.8242011]
[1758416118234,0.0873931,115730.0,115720.0,1.0436811]
[1758416118438,0.0873931,115730.0,115720.0,1.71360688]
[1758416118634,0.0873931,115730.0,115720.0,1.97967465]
[1758416118836,0.0873931,115730.0,115720.0,1.77753132]
[1758416119536,0.0873931,115730.0,115720.0,0.99705132]
[1758416119735,0.1096031,115730.0,115720.0,1.77753132]
[1758416125938,0.1096031,115730.0,115720.0,0.63625132]
[1758416126138,0.1096031,115730.0,115720.0,1.41713132]
[1758416126335,0.1096031,115730.0,115720.0,1.26161777]
[1758416127045,0.1096031,115730.0,115720.0,0.99555]
[1758416127343,0.1096031,115730.0,115720.0,1.4637611]
[1758416128446,0.1096031,115730.0,115720.0,1.26161777]
[1758416130049,0.1096031,115730.0,115720.0,1.62241777]
[1758416130943,0.1096031,115730.0,115720.0,1.8245611]
[1758416152664,0.1096031,115730.0,115720.0,1.62241777]
[1758416155870,0.1096031,115730.0,115720.0,1.77791306]
[1758416156775,0.1096031,115730.0,115720.0,1.62241777]
[1758416161172,0.1086031,115730.0,115720.0,1.61641777]
[1758416162375,0.1086031,115730.0,115720.0,1.8185611]
[1758416163168,0.1086031,115730.0,115720.0,1.55249333]
[1758416163374,0.1086031,115730.0,115720.0,1.8185611]
[1758416164478,0.0863931,115730.0,115720.0,1.8185611]
[1758416167778,0.0863931,115730.0,115720.0,1.904923]
[1758416168385,0.0863931,115730.0,115720.0,1.124443]
[1758416168576,0.0863931,115730.0,115720.0,1.8184011]
[1758416174384,0.0863931,115730.0,115720.0,1.4576011]
[1758416174574,0.0863931,115730.0,115720.0,1.8184011]
[1758416175885,0.0863931,115730.0,115720.0,2.08452407]
[1758416176884,0.0863931,115730.0,115720.0,2.08448407]
[1758416186900,0.0863931,115730.0,115720.0,1.72368407]
[1758416199694,0.0863931,115730.0,115720.0,2.08448407]
[1758416204905,0.0863931,115730.0,115720.0,1.30420407]
[1758416205105,0.0863931,115730.0,115720.0,2.08440407]
[1758416205808,0.0863931,115730.0,115720.0,1.30420407]
[1758416206005,0.0863931,115730.0,115720.0,2.08440407]
[1758416206511,0.0863931,115730.0,115720.0,1.30420407]
[1758416206811,0.0863931,115730.0,115720.0,2.08440407]
[1758416212713,0.0863931,115730.0,115720.0,2.17076647]
[1758416220719,0.0863931,115730.0,115720.0,1.63857573]
[1758416220921,0.0863931,115730.0,115720.0,1.55221333]
[1758416221116,0.0863931,115730.0,115720.0,2.08440407]
[1758416226620,0.0863931,115730.0,115720.0,1.88226074]
[1758416226830,0.0863931,115730.0,115720.0,1.35007]
[1758416227027,0.0863931,115730.0,115720.0,1.88226074]
[1758416235527,0.0863931,115730.0,115720.0,1.35007]
[1758416235829,0.0863931,115730.0,115720.0,1.61616752]
[1758416236427,0.0863931,115730.0,115720.0,1.81831085]
[1758416240139,0.0863931,115730.0,115720.0,1.90467335]
[1758416242342,0.0863931,115730.0,115720.0,1.70253002]
[1758416243841,0.0863931,115730.0,115720.0,1.4364325]
[1758416244139,0.0863931,115730.0,115720.0,1.70253002]
[1758416244542,0.0863931,115730.0,115720.0,1.61616752]
[1758416250348,0.0863931,115730.0,115720.0,1.25536752]
[1758416250552,0.0863931,115730.0,115720.0,1.61616752]
[1758416253259,0.0863931,115730.0,115720.0,1.81831085]
[1758416259351,0.37419062,115730.0,115720.0,0.77201333]
[1758416259553,0.37419062,115730.0,115720.0,0.39386816]
[1758416259855,1.76543062,115730.0,115720.0,0.39386816]
[1758416260045,1.77216062,115730.0,115720.0,0.39386816]
[1758416260248,1.77216062,115730.0,115720.0,0.39346816]
[1758416260448,1.79192062,115730.0,115720.0,0.0004]
[1758416260650,0.1080625,115720.0,115710.0,0.19285483]
[1758416260850,0.73496002,115720.0,115710.0,0.19355483]
[1758416261257,0.73496002,115720.0,115710.0,0.19275483]
[1758416261450,0.73496002,115720.0,115710.0,0.19315483]
[1758416263660,0.73496002,115720.0,115710.0,0.03763]
[1758416291071,0.73496002,115720.0,115710.0,0.19315483]
[1758416292567,0.73496002,115720.0,115710.0,0.03763]
[1758416294779,1.51516002,115720.0,115710.0,0.03763]
[1758416295977,1.78146782,115720.0,115710.0,0.45935749]
[1758416302283,1.78146782,115720.0,115710.0,0.30383266]
[1758416303383,1.00126782,115720.0,115710.0,0.30383266]
[1758416303679,1.78142782,115720.0,115710.0,0.30383266]
[1758416303876,1.42062782,115720.0,115710.0,0.30383266]
[1758416304082,1.78142782,115720.0,115710.0,0.30383266]
[1758416309289,1.78142782,115720.0,115710.0,0.45938382]
[1758416310186,1.78142782,115720.0,115710.0,0.03763]
[1758416310490,1.78142782,115720.0,115710.0,0.30383266]
[1758416322297,1.78142782,115720.0,115710.0,0.45938382]
[1758416322599,1.79454782,115720.0,115710.0,0.42442432]
[1758416323691,1.79454782,115720.0,115710.0,0.26887316]
[1758416324596,1.79454782,115720.0,115710.0,0.42442432]
[1758416332396,1.79454782,115720.0,115710.0,0.14682436]
[1758416332698,0.121752,115710.0,115700.0,0.22476333]
[1758416332900,0.74875466,115710.0,115700.0,0.22546333]
[1758416333098,0.74875466,115710.0,115700.0,0.02332]
[1758416333802,0.75727019,115710.0,115700.0,0.02332]
[1758416334002,0.82654669,115710.0,115700.0,0.02332]
[1758416334801,0.56034403,115710.0,115700.0,0.02332]
[1758416335003,0.82654669,115710.0,115700.0,0.02332]
[1758416335404,0.82654669,115710.0,115700.0,0.28952266]
[1758416336901,0.46574669,115710.0,115700.0,0.28952266]
[1758416337101,0.82654669,115710.0,115700.0,0.28952266]
[1758416337606,1.60670669,115710.0,115700.0,0.28952266]
[1758416338400,1.60670669,115710.0,115700.0,0.02332]
[1758416338604,1.60670669,115710.0,115700.0,0.28952266]
[1758416343810,1.60670669,115710.0,115700.0,0.27116076]
[1758416349618,1.24590669,115710.0,115700.0,0.27116076]
[1758416349812,1.60670669,115710.0,115700.0,0.27116076]
[1758416350117,0.82654669,115710.0,115700.0,0.27116076]
[1758416350314,1.60670669,115710.0,115700.0,0.27116076]
[1758416351718,1.60670669,115710.0,115700.0,0.0049581]
[1758416352017,1.60670669,115710.0,115700.0,0.27116076]
[1758416357722,1.60673852,115710.0,115700.0,0.0049581]
[1758416360928,1.60669852,115710.0,115700.0,0.0049581]
[1758416361221,1.24589852,115710.0,115700.0,0.0049581]
[1758416363729,1.24589852,115710.0,115700.0,0.16036446]
[1758416365331,1.24589852,115710.0,115700.0,0.0049581]
[1758416370135,0.46577852,115710.0,115700.0,0.0049581]
[1758416370433,1.24589852,115710.0,115700.0,0.0049581]
[1758416371037,0.46577852,115710.0,115700.0,0.0049581]
[1758416371235,1.24589852,115710.0,115700.0,0.0049581]
[1758416371435,0.9711485,115710.0,115700.0,0.27119259]
[1758416373740,0.9711485,115710.0,115700.0,0.42670176]
[1758416377040,0.1910285,115710.0,115700.0,0.42670176]
[1758416377238,0.9711485,115710.0,115700.0,0.42670176]
[1758416378440,0.1910285,115710.0,115700.0,0.42670176]
[1758416378637,0.9711485,115710.0,115700.0,0.42670176]
[1758416380241,0.9711485,115710.0,115700.0,0.27119259]
[1758416389153,0.9711485,115710.0,115700.0,0.0049581]
[1758416389350,0.9711485,115710.0,115700.0,0.27119259]
[1758416393152,0.1910285,115710.0,115700.0,0.27119259]
[1758416393352,0.9711085,115710.0,115700.0,0.27119259]
[1758416403961,0.9711085,115710.0,115700.0,0.0049581]
[1758416406855,0.9711085,115710.0,115700.0,0.42674847]
[1758416409753,0.9711085,115710.0,115700.0,0.16051398]
[1758416410059,0.9711085,115710.0,115700.0,0.0049581]
[1758416411165,1.3319085,115710.0,115700.0,0.0049581]
[1758416411560,1.59814299,115710.0,115700.0,0.0049581]
[1758416419766,1.59814092,115710.0,115700.0,0.27119052]
[1758416428174,1.59814092,115710.0,115700.0,0.42670017]
[1758416428980,0.81806092,115710.0,115700.0,0.27119052]
[1758416429279,0.45726092,115710.0,115700.0,0.27119052]
[1758416431980,0.1910285,115710.0,115700.0,0.27119052]
[1758416432174,0.45726092,115710.0,115700.0,0.27119052]
[1758416437185,1.23730092,115710.0,115700.0,0.27119052]
[1758416438486,0.45726092,115710.0,115700.0,0.0049581]
[1758416438681,1.23730092,115710.0,115700.0,0.27119052]
[1758416443689,0.45726092,115710.0,115700.0,0.27119052]
[1758416444190,0.45726092,115710.0,115700.0,0.0049581]
[1758416444390,0.45726092,115710.0,115700.0,0.27119052]
[1758416446790,1.23730092,115710.0,115700.0,0.27119052]
[1758416446991,0.45726092,115710.0,115700.0,0.27119052]
[1758416447192,1.23730092,115710.0,115700.0,0.27119052]
[1758416448287,0.45726092,115710.0,115700.0,0.27119052]
[1758416448585,1.23726092,115710.0,115700.0,0.27119052]
[1758416449994,0.45726092,115710.0,115700.0,0.27119052]
[1758416450388,1.23726092,115710.0,115700.0,0.27119052]
[1758416451794,1.23726092,115710.0,115700.0,0.0049581]
[1758416452096,1.23726092,115710.0,115700.0,0.27119052]
[1758416458505,0.9710285,115710.0,115700.0,0.27119052]
[1758416458703,0.45726092,115710.0,115700.0,0.27119052]
[1758416458905,1.23738092,115710.0,115700.0,0.27119052]
[1758416460204,1.59818092,115710.0,115700.0,0.0008]
[1758416461593,0.81806092,115710.0,115700.0,0.0008]
[1758416461798,1.59814092,115710.0,115700.0,0.0008]
[1758416462613,1.59814092,115710.0,115700.0,0.0225]
[1758416469420,1.3319085,115710.0,115700.0,0.0225]
[1758416469719,1.59814092,115710.0,115700.0,0.0225]
[1758416470720,1.59814092,115710.0,115700.0,0.0008]
[1758416475711,1.59814092,115710.0,115700.0,0.02336]
[1758416479732,1.59816236,115710.0,115700.0,0.02336]
[1758416482631,1.59816236,115710.0,115700.0,0.17890138]
[1758416484530,1.86441622,115710.0,115700.0,0.15634138]
[1758416484736,1.86441622,115710.0,115700.0,0.15554138]
[1758416484931,1.86441622,115710.0,115700.0,0.15594138]
[1758416485130,1.86441622,115710.0,115700.0,0.0004]
[1758416485530,1.59816236,115710.0,115700.0,0.0004]
[1758416488035,1.86441622,115710.0,115700.0,0.0004]
[1758416492132,1.59816236,115710.0,115700.0,0.0004]
[1758416500940,0.81808236,115710.0,115700.0,0.0004]
[1758416501146,1.59816236,115710.0,115700.0,0.0004]
[1758416502943,0.5518285,115710.0,115700.0,0.0004]
[1758416503147,1.3319085,115710.0,115700.0,0.0215]
[1758416503350,1.59816236,115710.0,115700.0,0.0215]
[1758416505249,1.59816236,115710.0,115700.0,0.0004]
[1758416508559,1.59816236,115710.0,115700.0,0.15594138]
[1758416510658,1.59916236,115710.0,115700.0,0.16194138]
[1758416512459,1.59916236,115710.0,115700.0,0.0064]
[1758416522966,1.59916236,115710.0,115700.0,0.16194138]
[1758416535075,1.59916236,115710.0,115700.0,0.0064]
[1758416539778,1.3329085,115710.0,115700.0,0.0064]
[1758416539978,1.59916236,115710.0,115700.0,0.0064]
[1758416541781,1.59916958,115710.0,115700.0,0.0064]
[1758416544385,1.3329085,115710.0,115700.0,0.0064]
[1758416544685,1.59916958,115710.0,115700.0,0.0064]
[1758416545489,1.59916958,115710.0,115700.0,0.16194138]
[1758416551796,1.59916958,115710.0,115700.0,0.0064]
[1758416552995,1.3329085,115710.0,115700.0,0.0064]
[1758416553498,1.59916958,115710.0,115700.0,0.0064]
[1758416569408,1.23836958,115710.0,115700.0,0.0064]
[1758416569605,1.59916958,115710.0,115700.0,0.0064]
[1758416577216,1.86543066,115710.0,115700.0,0.0064]
[1758416577416,1.59916958,115710.0,115700.0,0.0064]
[1758416577912,1.23836958,115710.0,115700.0,0.0064]
[1758416578213,1.59916958,115710.0,115700.0,0.0064]
[1758416580413,1.86543066,115710.0,115700.0,0.0064]
[1758416584218,1.86543066,115710.0,115700.0,0.16194138]
[1758416589723,1.86543066,115710.0,115700.0,0.0064]
[1758416591427,1.86543066,115710.0,115700.0,0.16194138]
[1758416594624,1.86543066,115710.0,115700.0,0.0064]
[1758416595928,1.3329085,115710.0,115700.0,0.0064]
[1758416596229,1.86543066,115710.0,115700.0,0.0064]
[1758416596429,1.59916958,115710.0,115700.0,0.0064]
[1758416596832,1.86543066,115710.0,115700.0,0.0064]
[1758416599434,1.59916958,115710.0,115700.0,0.16194138]
[1758416600832,1.86543066,115710.0,115700.0,0.16194138]
[1758416601735,1.59918838,115710.0,115700.0,0.16194138]
[1758416602733,1.59918838,115710.0,115700.0,0.0064]
[1758416605137,1.59918838,115710.0,115700.0,0.16194138]
[1758416607643,1.23838838,115710.0,115700.0,0.16194138]
[1758416607838,1.59918838,115710.0,115700.0,0.16194138]
[1758416613147,1.59918838,115710.0,115700.0,0.0064]
[1758416618150,1.3329085,115710.0,115700.0,0.0064]
[1758416618348,1.59918838,115710.0,115700.0,0.0064]
[1758416623051,1.59918838,115710.0,115700.0,0.16194138]
[1758416623752,1.59918838,115710.0,115700.0,0.0064]
[1758416624347,1.3329085,115710.0,115700.0,0.0064]
[1758416624547,1.59918838,115710.0,115700.0,0.0064]
[1758416631851,1.59918838,115710.0,115700.0,0.16194138]
[1758416632154,0.81910838,115710.0,115700.0,0.18367138]
[1758416632355,1.59910838,115710.0,115700.0,0.18367138]
[1758416637453,1.59910838,115710.0,115700.0,0.02813]
[1758416641562,1.59910838,115710.0,115700.0,0.18367138]
[1758416651965,1.59910838,115710.0,115700.0,0.02813]
[1758416657975,1.23830838,115710.0,115700.0,0.02813]
[1758416658173,1.59910838,115710.0,115700.0,0.02813]
[1758416661775,1.59908759,115710.0,115700.0,0.02813]
[1758416663179,1.59908759,115710.0,115700.0,0.18367138]
[1758416664179,1.59908759,115710.0,115700.0,0.18327138]
[1758416666578,1.61925242,115710.0,115700.0,0.18327138]
[1758416682988,1.61925242,115710.0,115700.0,0.16154138]
[1758416683386,1.25845242,115710.0,115700.0,0.16154138]
[1758416683589,1.61925242,115710.0,115700.0,0.18363138]
[1758416685087,1.61925242,115710.0,115700.0,0.16154138]
[1758416685288,1.61925242,115710.0,115700.0,0.18363138]
[1758416688292,1.61925242,115710.0,115700.0,0.16154138]
[1758416688890,1.61925242,115710.0,115700.0,0.006]
[1758416690389,1.61925242,115710.0,115700.0,0.02809]
[1758416691790,1.61925242,115710.0,115700.0,0.006]
[1758416692293,1.61925242,115710.0,115700.0,0.02809]
[1758416693791,1.61925242,115710.0,115700.0,0.18363138]
[1758416694585,1.61925242,115710.0,115700.0,0.006]
[1758416700094,1.61925242,115710.0,115700.0,0.02772]
[1758416700296,1.61925242,115710.0,115700.0,0.18326138]
[1758416702900,1.61925242,115710.0,115700.0,0.02772]
[1758416703101,0.83925242,115710.0,115700.0,0.02772]
[1758416703299,1.61913242,115710.0,115700.0,0.02772]
[1758416703801,0.83925242,115710.0,115700.0,0.02772]
[1758416704003,1.61913242,115710.0,115700.0,0.006]
[1758416704600,1.61913242,115710.0,115700.0,0.02712]
[1758416705506,1.61913242,115710.0,115700.0,0.006]
[1758416707108,0.83925242,115710.0,115700.0,0.006]
[1758416707307,0.83925242,115710.0,115700.0,0.02712]
[1758416707500,1.61913242,115710.0,115700.0,0.02712]
[1758416708512,1.61913242,115710.0,115700.0,0.006]
[1758416713114,1.61913242,115710.0,115700.0,0.16154138]
[1758416715610,1.88539151,115710.0,115700.0,0.16154138]
[1758416717114,2.1516506,115710.0,115700.0,0.16194138]
[1758416717315,2.1516506,115710.0,115700.0,0.0064]
[1758416717620,2.4016506,115710.0,115700.0,0.006]
[1758416717812,2.4016506,115710.0,115700.0,0.0064]
[1758416718214,0.1212295,115700.0,115690.0,0.0001]
[1758416718413,0.121237,115690.0,115680.0,0.20304333]
[1758416718613,0.1000645,115680.0,115670.0,0.15564138]
[1758416718820,0.1212519,115670.0,115660.0,0.61669047]
[1758416719117,0.38751099,115670.0,115660.0,0.61659047]
[1758416719719,0.37751099,115670.0,115660.0,0.61659047]
[1758416719914,0.1112519,115670.0,115660.0,0.61659047]
[1758416720110,0.37751099,115670.0,115660.0,0.61659047]
[1758416720314,0.38051099,115670.0,115660.0,0.63459047]
[1758416721925,0.1142519,115670.0,115660.0,0.36833138]
[1758416722123,0.1142519,115670.0,115660.0,0.21279]
[1758416723024,0.1142519,115670.0,115660.0,0.36808422]
[1758416723924,0.1142519,115670.0,115660.0,0.21279]
[1758416724625,0.1142519,115670.0,115660.0,0.3680358]
[1758416727225,0.1142519,115670.0,115660.0,0.21279]
[1758416728220,0.1142519,115670.0,115660.0,0.36798409]
[1758416728630,0.12303152,115670.0,115660.0,0.36798409]
[1758416730226,0.77053964,115670.0,115660.0,0.34686409]
[1758416730424,1.02053964,115670.0,115660.0,0.17399409]
[1758416730623,1.02053964,115670.0,115660.0,0.0188]
[1758416730819,1.80157964,115670.0,115660.0,0.0188]
[1758416731028,1.80157964,115670.0,115660.0,0.018]
[1758416731228,1.80157964,115670.0,115660.0,0.0184]
[1758416733731,1.86922122,115670.0,115660.0,0.0184]
[1758416735534,1.08818122,115670.0,115660.0,0.0184]
[1758416735730,1.86930122,115670.0,115660.0,0.0184]
[1758416735924,1.08818122,115670.0,115660.0,0.0184]
[1758416736125,1.86926122,115670.0,115660.0,0.0184]
[1758416739430,1.61926122,115670.0,115660.0,0.0184]
[1758416742431,1.61918122,115670.0,115660.0,0.0184]
[1758416742628,0.83818122,115670.0,115660.0,0.0184]
[1758416742932,1.61914122,115670.0,115660.0,0.0184]
[1758416749839,0.83818122,115670.0,115660.0,0.0184]
[1758416750036,1.61902122,115670.0,115660.0,0.0184]
[1758416754244,0.83818122,115670.0,115660.0,0.0184]
[1758416754440,1.61894122,115670.0,115660.0,0.0184]
[1758416759745,1.61894122,115670.0,115660.0,0.018]
[1758416759934,1.61894122,115670.0,115660.0,0.0184]
[1758416761242,1.61594122,115670.0,115660.0,0.0004]
[1758416761443,1.61794122,115670.0,115660.0,0.0074]
[1758416761645,0.1208094,115660.0,115650.0,0.0001]
[1758416761851,0.1208169,115650.0,115640.0,0.02188]
[1758416762148,1.2598969,115650.0,115640.0,0.02178]
[1758416762655,1.2598969,115650.0,115640.0,0.02218]
[1758416763036,1.2628969,115650.0,115640.0,0.03518]
[1758416764147,1.52930054,115650.0,115640.0,0.03518]
[1758416765447,1.52930054,115650.0,115640.0,0.19065006]
[1758416766350,0.74802054,115650.0,115640.0,0.19065006]
[1758416766545,1.52922054,115650.0,115640.0,0.19065006]
[1758416768050,1.52922054,115650.0,115640.0,0.03518]
[1758416769754,1.52922054,115650.0,115640.0,0.19060927]
[1758416770853,1.52918054,115650.0,115640.0,0.19060927]
[1758416771956,0.74802054,115650.0,115640.0,0.19060927]
[1758416772154,1.52914054,115650.0,115640.0,0.19060927]
[1758416772352,0.74802054,115650.0,115640.0,0.19060927]
[1758416772553,1.2627369,115650.0,115640.0,0.19060927]
[1758416773056,0.4816169,115650.0,115640.0,0.19060927]
[1758416773248,1.2627369,115650.0,115640.0,0.19060927]
[1758416774257,0.4816169,115650.0,115640.0,0.19060927]
[1758416774444,1.2626969,115650.0,115640.0,0.19060927]
[1758416774650,1.2626969,115650.0,115640.0,0.03518]
[1758416775058,0.4816169,115650.0,115640.0,0.03518]
[1758416775356,1.2626969,115650.0,115640.0,0.03518]
[1758416781870,1.2626969,115650.0,115640.0,0.19060927]
[1758416783565,1.2626969,115650.0,115640.0,0.03518]
[1758416783758,1.2626969,115650.0,115640.0,0.30166914]
[1758416783759,1.52918604,115650.0,115640.0,0.30166914]
[1758416788272,1.52918604,115650.0,115640.0,0.03518]
[1758416788477,1.52918604,115650.0,115640.0,0.30166914]
[1758416789775,1.52918604,115650.0,115640.0,0.50381247]
[1758416792176,1.52918604,115650.0,115640.0,0.23732333]
[1758416792373,1.52918604,115650.0,115640.0,0.50381247]
[1758416793574,1.52918604,115650.0,115640.0,0.30166914]
[1758416794080,1.54939571,115650.0,115640.0,0.16904136]
[1758416794279,2.16019571,115650.0,115640.0,0.10304916]
[1758416794480,2.16019571,115650.0,115640.0,0.02738466]
[1758416794680,2.16019571,115650.0,115640.0,0.00481816]
[1758416794884,2.16019571,115650.0,115640.0,0.0004]
[1758416795179,0.1226143,115640.0,115630.0,0.26738914]
[1758416795368,0.74990344,115640.0,115630.0,0.26728914]
[1758416795880,1.01639258,115640.0,115630.0,0.26728914]
[1758416796177,1.01239258,115640.0,115630.0,0.26728914]
[1758416796378,1.01239258,115640.0,115630.0,0.0008]
[1758416797081,1.02139258,115640.0,115630.0,0.0048]
[1758416800385,0.4884143,115640.0,115630.0,0.0048]
[1758416800680,1.02139258,115640.0,115630.0,0.0048]
[1758416801683,1.02139258,115640.0,115630.0,0.16020393]
[1758416802085,1.80207258,115640.0,115630.0,0.16020393]
[1758416802378,1.80203258,115640.0,115630.0,0.16020393]
[1758416803886,1.80203258,115640.0,115630.0,0.18252393]
[1758416804080,0.75490344,115640.0,115630.0,0.18252393]
[1758416804386,1.53550344,115640.0,115630.0,0.44901307]
[1758416804883,1.53550344,115640.0,115630.0,0.29360914]
[1758416806387,1.53550344,115640.0,115630.0,0.02712]
[1758416806588,1.53550344,115640.0,115630.0,0.29360914]
[1758416807779,0.75490344,115640.0,115630.0,0.29360914]
[1758416807983,1.53550344,115640.0,115630.0,0.27128914]
[1758416808388,1.53550344,115640.0,115630.0,0.0048]
[1758416808585,1.53550344,115640.0,115630.0,0.27128914]
[1758416808779,1.80199258,115640.0,115630.0,0.27128914]
[1758416811481,1.80199258,115640.0,115630.0,0.42669307]
[1758416812188,1.80199258,115640.0,115630.0,0.27128914]
[1758416814087,1.80199258,115640.0,115630.0,0.42669307]
[1758416816385,1.80199258,115640.0,115630.0,0.27128914]
[1758416817388,1.80199258,115640.0,115630.0,0.29444914]
[1758416817688,1.02139258,115640.0,115630.0,0.29444914]
[1758416817888,1.80183258,115640.0,115630.0,0.29444914]
[1758416818091,1.80183258,115640.0,115630.0,0.02796]
[1758416818389,1.80183258,115640.0,115630.0,0.29444914]
[1758416819392,1.02139258,115640.0,115630.0,0.29444914]
[1758416819593,1.80183258,115640.0,115630.0,0.29444914]
[1758416820186,1.02139258,115640.0,115630.0,0.29444914]
[1758416820386,1.80183258,115640.0,115630.0,0.29444914]
[1758416820992,1.02139258,115640.0,115630.0,0.29444914]
[1758416821294,1.80183258,115640.0,115630.0,0.29444914]
[1758416822896,1.80183258,115640.0,115630.0,0.44985307]
[1758416825201,1.80183258,115640.0,115630.0,0.18336393]
[1758416825403,1.80183258,115640.0,115630.0,0.44985307]
[1758416826100,1.80183258,115640.0,115630.0,0.29444914]
[1758416839012,1.53534344,115640.0,115630.0,0.29444914]
[1758416840816,1.53534344,115640.0,115630.0,0.45008392]
[1758416841009,1.53534344,115640.0,115630.0,0.18359478]
[1758416841209,1.53534344,115640.0,115630.0,0.45008392]
[1758416841410,1.80183258,115640.0,115630.0,0.45008392]
[1758416842312,1.53534344,115640.0,115630.0,0.45008392]
[1758416843421,1.80183258,115640.0,115630.0,0.45008392]
[1758416843808,1.53540739,115640.0,115630.0,0.18359478]
[1758416845825,1.53540739,115640.0,115630.0,0.02796]
[1758416851526,1.2688543,115640.0,115630.0,0.02796]
[1758416851731,1.53540739,115640.0,115630.0,0.02796]
[1758416855537,1.17460739,115640.0,115630.0,0.02796]
[1758416855832,1.53540739,115640.0,115630.0,0.02796]
[1758416861239,1.53540739,115640.0,115630.0,0.0048]
[1758416863938,1.17460739,115640.0,115630.0,0.0048]
[1758416864139,1.53540739,115640.0,115630.0,0.0048]
[1758416866540,1.17460739,115640.0,115630.0,0.0048]
[1758416866837,1.53540739,115640.0,115630.0,0.0048]
[1758416870542,1.17460739,115640.0,115630.0,0.0048]
[1758416870740,1.53540739,115640.0,115630.0,0.0048]
[1758416872639,1.17460739,115640.0,115630.0,0.0048]
[1758416872845,1.53540739,115640.0,115630.0,0.0048]
[1758416877249,1.53540739,115640.0,115630.0,0.16045586]
[1758416882052,1.53540739,115640.0,115630.0,0.0048]
[1758416887752,1.53540739,115640.0,115630.0,0.16045329]
[1758416888456,1.53540739,115640.0,115630.0,0.0048]
[1758416890057,1.53540739,115640.0,115630.0,0.16045188]
[1758416891658,1.53540739,115640.0,115630.0,0.0048]
[1758416892055,1.53540739,115640.0,115630.0,0.16045101]
[1758416895460,1.2688543,115640.0,115630.0,0.16045101]
[1758416895659,1.53540739,115640.0,115630.0,0.16045101]
[1758416896164,1.53540739,115640.0,115630.0,0.0048]
[1758416897167,1.53540739,115640.0,115630.0,0.16045006]
[1758416897963,1.53540739,115640.0,115630.0,0.0048]
[1758416900571,1.53540739,115640.0,115630.0,0.1604494]
[1758416902168,1.53540739,115640.0,115630.0,0.0048]
[1758416905866,1.801977,115640.0,115630.0,0.0048]
[1758416908378,1.2688543,115640.0,115630.0,0.0048]
[1758416908565,1.53541565,115640.0,115630.0,0.0048]
[1758416909477,1.53541565,115640.0,115630.0,0.27136135]
[1758416909676,1.801977,115640.0,115630.0,0.27136135]
[1758416909977,1.53541565,115640.0,115630.0,0.27136135]
[1758416910882,1.53541565,115640.0,115630.0,0.0048]
[1758416913487,1.53541565,115640.0,115630.0,0.27136135]
[1758416919789,0.75497565,115640.0,115630.0,0.27136135]
[1758416920086,1.53557565,115640.0,115630.0,0.27136135]
[1758416923686,0.75497565,115640.0,115630.0,0.27136135]
[1758416924095,1.53553565,115640.0,115630.0,0.27136135]
[1758416925993,1.2689743,115640.0,115630.0,0.27136135]
[1758416926494,1.53553565,115640.0,115630.0,0.27136135]
[1758416929990,0.75497565,115640.0,115630.0,0.27136135]
[1758416930296,1.53557565,115640.0,115630.0,0.27136135]
[1758416931493,1.53557565,115640.0,115630.0,0.42700863]
[1758416933897,1.17477565,115640.0,115630.0,0.42700863]
[1758416934194,1.53557565,115640.0,115630.0,0.42700863]
[1758416934694,1.53557565,115640.0,115630.0,0.27136135]
[1758416936400,0.75497565,115640.0,115630.0,0.27136135]
[1758416936697,1.53541565,115640.0,115630.0,0.27136135]
[1758416938591,1.2688543,115640.0,115630.0,0.29361135]
[1758416938798,1.53541565,115640.0,115630.0,0.29361135]
[1758416938998,1.53545565,115640.0,115630.0,0.29361135]
[1758416941794,1.53545565,115640.0,115630.0,0.44925961]
[1758416941991,1.53557565,115640.0,115630.0,0.44925961]
[1758416943902,1.53557565,115640.0,115630.0,0.18269826]
[1758416944106,1.53557565,115640.0,115630.0,0.44925961]
[1758416948999,1.53557565,115640.0,115630.0,0.29361135]
[1758416949811,1.53557565,115640.0,115630.0,0.44926886]
[1758416955411,1.53557565,115640.0,115630.0,0.29361135]
[1758416963120,1.53541565,115640.0,115630.0,0.29361135]
[1758416963429,1.17461565,115640.0,115630.0,0.65441135]
[1758416964125,1.17461565,115640.0,115630.0,0.85655468]
[1758416967631,0.39417565,115640.0,115630.0,0.85655468]
[1758416967826,0.9081743,115640.0,115630.0,0.85651707]
[1758416969633,0.9081743,115640.0,115630.0,0.49571707]
[1758416969820,0.9081743,115640.0,115630.0,0.85651707]
[1758416970231,0.9081743,115640.0,115630.0,0.65437374]
[1758416972927,0.9081743,115640.0,115630.0,0.65737374]